fUST/lending_fUST_20250205
["ID","MTS","AMOUNT","RATE_DAILY","PERIOD"]
[351726323,1738767041715,-500.0,0.00015462,2]
[351726324,1738767041725,-1796.58,0.00015462,2]
[351726325,1738767041735,-500.0,0.00015462,2]
[351726326,1738767041744,-3696.37,0.00015462,2]
[351726327,1738767041753,-500.0,0.00015462,2]
[351726328,1738767041763,-500.0,0.00015462,2]
[351726329,1738767041772,-500.0,0.00015462,2]
[351726330,1738767041782,-500.0,0.00015462,2]
[351726331,1738767041791,-623.65312254,0.00015462,2]
[351726332,1738767041800,-500.0,0.00015462,2]
[351726333,1738767041810,-507.34960727,0.00015462,2]
[351726334,1738767041958,-4023.48,0.00015462,2]
[351726335,1738767041969,-500.0,0.00015462,2]
[351726336,1738767041978,-975.89,0.00015462,2]
[351726337,1738767041987,-658.69,0.00015462,2]
[351726338,1738767041997,-300.0,0.00015462,2]
[351726339,1738767042007,-500.0,0.00015462,2]
[351726340,1738767042017,-1020.58,0.00015462,2]
[351726341,1738767042026,-500.0,0.00015462,2]
[351726342,1738767042037,-500.0,0.00015462,2]
[351726343,1738767042046,-500.0,0.00015462,2]
[351726344,1738767042056,-500.0,0.00015462,2]
[351726345,1738767042066,-500.0,0.00015462,2]
[351726346,1738767042077,-1309.65,0.00015462,2]
[351726347,1738767042087,-500.0,0.00015462,2]
[351726348,1738767042097,-500.0,0.00015462,2]
[351726349,1738767042107,-500.0,0.00015462,2]
[351726350,1738767042118,-500.0,0.00015462,2]
[351726351,1738767042128,-500.0,0.00015462,2]
[351726352,1738767042138,-500.0,0.00015462,2]
[351726353,1738767042148,-500.0,0.00015462,2]
[351726354,1738767042163,-500.0,0.00015462,2]
[351726355,1738767042174,-500.0,0.00015462,2]
[351726356,1738767042184,-500.0,0.00015462,2]
[351726358,1738767042195,-794.0,0.00015462,2]
[351726360,1738767042206,-915.64,0.00015462,2]
[351726362,1738767042216,-500.0,0.00015462,2]
[351726363,1738767042226,-278.91835774,0.00015462,2]
[351726366,1738767042237,-1082.0,0.00015462,2]
[351726368,1738767042247,-515.21274637,0.00015462,2]
[351726370,1738767042257,-500.0,0.00015462,2]
[351726372,1738767042267,-500.0,0.00015462,2]
[351726374,1738767042276,-500.0,0.00015462,2]
[351726375,1738767042285,-780.35,0.00015462,2]
[351726378,1738767042296,-591.83994075,0.00015462,2]
[351726379,1738767042306,-500.0,0.00015462,2]
[351726380,1738767042316,-500.0,0.00015462,2]
[351726381,1738767042326,-500.0,0.00015462,2]
[351726382,1738767042336,-1062.32,0.00015462,2]
[351726383,1738767042346,-500.0,0.00015462,2]
[351726384,1738767042357,-557.04,0.00015462,2]
[351726385,1738767042367,-500.0,0.00015462,2]
[351726387,1738767042377,-500.0,0.00015462,2]
[351726389,1738767042386,-500.0,0.00015462,2]
[351726391,1738767042396,-500.0,0.00015462,2]
[351726393,1738767042407,-500.0,0.00015462,2]
[351726395,1738767042417,-500.0,0.00015462,2]
[351726397,1738767042426,-1082.15,0.00015462,2]
[351726399,1738767042437,-703.14,0.00015462,2]
[351726401,1738767042447,-500.0,0.00015462,2]
[351726402,1738767042457,-500.0,0.00015462,2]
[351726404,1738767042466,-500.0,0.00015462,2]
[351726406,1738767042476,-500.0,0.00015462,2]
[351726408,1738767042485,-1159.96,0.00015462,2]
[351726410,1738767042495,-500.0,0.00015462,2]
[351726412,1738767042504,-1735.82,0.00015462,2]
[351726414,1738767042513,-500.0,0.00015462,2]
[351726415,1738767042523,-500.0,0.00015462,2]
[351726416,1738767042533,-500.0,0.00015462,2]
[351726418,1738767042542,-500.0,0.00015462,2]
[351726419,1738767042552,-604.47,0.00015462,2]
[351726421,1738767042561,-1879.86,0.00015462,2]
[351726423,1738767042571,-505.45721231,0.00015462,2]
[351726424,1738767042580,-500.0,0.00015462,2]
[351726425,1738767042590,-500.0,0.00015462,2]
[351726427,1738767042600,-500.0,0.00015462,2]
[351726429,1738767042610,-1007.91,0.00015462,2]
[351726431,1738767042619,-500.0,0.00015462,2]
[351726432,1738767042629,-1001.53,0.00015462,2]
[351726434,1738767042638,-702.94,0.00015462,2]
[351726436,1738767042647,-514.99960741,0.00015462,2]
[351726438,1738767042659,-500.0,0.00015462,2]
[351726440,1738767042668,-500.0,0.00015462,2]
[351726442,1738767042678,-500.0,0.00015462,2]
[351726443,1738767042688,-1000.0,0.00015462,2]
[351726444,1738767042698,-500.0,0.00015462,2]
[351726445,1738767042708,-500.0,0.00015462,2]
[351726447,1738767042718,-613.11,0.00015462,2]
[351726448,1738767042728,-500.0,0.00015462,2]
[351726449,1738767042739,-500.0,0.00015462,2]
[351726450,1738767042748,-500.0,0.00015462,2]
[351726451,1738767042758,-500.0,0.00015462,2]
[351726452,1738767042769,-500.0,0.00015462,2]
[351726453,1738767042779,-500.0,0.00015462,2]
[351726454,1738767042789,-500.0,0.00015462,2]
[351726455,1738767042799,-500.0,0.00015462,2]
[351726456,1738767042809,-500.0,0.00015462,2]
[351726457,1738767042818,-500.0,0.00015462,2]
[351726458,1738767042827,-615.32,0.00015462,2]
[351726459,1738767042837,-500.0,0.00015462,2]
[351726461,1738767042847,-1906.46,0.00015462,2]
[351726463,1738767042856,-500.0,0.00015462,2]
[351726464,1738767042865,-1020.82,0.00015462,2]
[351726466,1738767042875,-572.43,0.00015462,2]
[351726467,1738767042885,-500.0,0.00015462,2]
[351726468,1738767042895,-500.0,0.00015462,2]
[351726469,1738767042906,-500.0,0.00015462,2]
[351726470,1738767042916,-500.0,0.00015462,2]
[351726471,1738767042926,-500.0,0.00015462,2]
[351726472,1738767042936,-500.0,0.00015462,2]
[351726473,1738767042946,-500.0,0.00015462,2]
[351726474,1738767042955,-500.0,0.00015462,2]
[351726475,1738767042967,-500.0,0.00015462,2]
[351726476,1738767042976,-438.22386094,0.00015462,2]
[351726477,1738767042986,-500.0,0.00015462,2]
[351726478,1738767042995,-500.0,0.00015462,2]
[351726479,1738767043005,-500.0,0.00015462,2]
[351726480,1738767043014,-500.0,0.00015462,2]
[351726481,1738767043024,-500.0,0.00015462,2]
[351726482,1738767043033,-500.0,0.00015462,2]
[351726483,1738767043044,-500.0,0.00015462,2]
[351726484,1738767043055,-500.0,0.00015462,2]
[351726485,1738767043064,-500.0,0.00015462,2]
[351726486,1738767043073,-500.0,0.00015462,2]
[351726487,1738767043082,-1072.35,0.00015462,2]
[351726488,1738767043092,-500.0,0.00015462,2]
[351726490,1738767043101,-510.59,0.00015462,2]
[351726492,1738767043111,-500.0,0.00015462,2]
[351726494,1738767043121,-500.0,0.00015462,2]
[351726495,1738767043130,-763.43,0.00015462,2]
[351726496,1738767043140,-1442.66,0.00015462,2]
[351726497,1738767043150,-500.0,0.00015462,2]
[351726498,1738767043160,-500.0,0.00015462,2]
[351726499,1738767043170,-500.0,0.00015462,2]
[351726500,1738767043181,-211.74345682,0.00015462,2]
[351726501,1738767043191,-500.0,0.00015462,2]
[351726502,1738767043201,-503.79388325,0.00015462,2]
[351726503,1738767043211,-500.0,0.00015462,2]
[351726504,1738767043221,-500.0,0.00015462,2]
[351726505,1738767043231,-507.95164527,0.00015462,2]
[351726506,1738767043241,-3728.09,0.00015462,2]
[351726507,1738767043250,-500.0,0.00015462,2]
[351726508,1738767043261,-500.0,0.00015462,2]
[351726509,1738767043271,-502.94517475,0.00015462,2]
[351726510,1738767043280,-1233.6,0.00015462,2]
[351726511,1738767043290,-795.11,0.00015462,2]
[351726512,1738767043299,-302.68106921,0.00015462,2]
[351726513,1738767043309,-500.0,0.00015462,2]
[351726514,1738767043319,-500.0,0.00015462,2]
[351726515,1738767043328,-1015.33,0.00015462,2]
[351726516,1738767043339,-500.0,0.00015462,2]
[351726517,1738767043349,-500.0,0.00015462,2]
[351726518,1738767043358,-500.0,0.00015462,2]
[351726519,1738767043367,-597.24,0.00015462,2]
[351726520,1738767043377,-505.09044525,0.00015462,2]
[351726521,1738767043386,-500.0,0.00015462,2]
[351726522,1738767043395,-510.55742378,0.00015462,2]
[351726523,1738767043406,-500.0,0.00015462,2]
[351726524,1738767043416,-500.0,0.00015462,2]
[351726525,1738767043426,-500.0,0.00015463,2]
[351726526,1738767043436,-500.0,0.00015463,2]
[351726527,1738767043445,-500.0,0.00015463,2]
[351726528,1738767043454,-500.0,0.00015463,2]
[351726529,1738767043464,-500.0,0.00015463,2]
[351726530,1738767043473,-500.0,0.00015463,2]
[351726531,1738767043483,-500.0,0.00015463,2]
[351726532,1738767043492,-536.54576892,0.00015464,2]
[351726533,1738767043502,-500.0,0.00015464,2]
[351726534,1738767043512,-500.0,0.00015464,2]
[351726535,1738767043522,-500.0,0.00015464,2]
[351726536,1738767043531,-500.0,0.00015464,2]
[351726537,1738767043542,-505.07902826,0.00015464,2]
[351726538,1738767043552,-500.0,0.00015464,2]
[351726539,1738767043570,-450.83655582,0.00015464,2]
[351726540,1738767043581,-500.0,0.00015464,2]
[351726541,1738767043590,-500.0,0.00015464,2]
[351726542,1738767043600,-500.0,0.00015464,2]
[351726543,1738767043609,-500.0,0.00015464,2]
[351726544,1738767043619,-500.0,0.00015464,2]
[351726545,1738767043628,-500.0,0.00015464,2]
[351726546,1738767043639,-500.0,0.00015464,2]
[351726547,1738767043649,-502.43778743,0.00015464,2]
[351726548,1738767043660,-500.0,0.00015464,2]
[351726549,1738767043669,-500.0,0.00015464,2]
[351726550,1738767043679,-641.28075093,0.00015464,2]
[351726551,1738767043688,-503.14789903,0.00015464,2]
[351726552,1738767043698,-1222.06,0.00015464,2]
[351726553,1738767043707,-500.0,0.00015464,2]
[351726554,1738767043717,-525.68072251,0.00015464,2]
[351726555,1738767043727,-503.07180841,0.00015464,2]
[351726556,1738767043737,-502.67477972,0.00015464,2]
[351726557,1738767043747,-215.26399543,0.00015464,2]
[351726558,1738767043756,-502.14864093,0.00015464,2]
[351726559,1738767043767,-569.27656051,0.00015464,2]
[351726560,1738767043777,-595.39942233,0.00015464,2]
[351726561,1738767043787,-500.0,0.00015464,2]
[351726562,1738767043796,-500.0,0.00015464,2]
[351726563,1738767043806,-500.0,0.00015464,2]
[351726564,1738767043816,-500.0,0.00015464,2]
[351726565,1738767043826,-500.0,0.00015464,2]
[351726566,1738767043836,-500.0,0.00015464,2]
[351726567,1738767043845,-500.0,0.00015464,2]
[351726568,1738767043855,-500.0,0.00015464,2]
[351726569,1738767043865,-500.0,0.00015464,2]
[351726570,1738767043875,-500.0,0.00015464,2]
[351726571,1738767043888,-190.16296623,0.00015464,2]
[351726572,1738767043898,-1286.15103807,0.00015498,2]
[351726573,1738767043910,-1286.15103807,0.00015498,2]
[351726574,1738767043922,-1286.15103807,0.00015498,2]
[351726575,1738767043933,-1286.15103807,0.00015498,2]
[351726576,1738767043943,-1286.15103807,0.00015498,2]
[351726577,1738767043954,-1286.15103807,0.00015498,2]
[351726578,1738767043966,-1286.15103807,0.00015498,2]
[351726579,1738767043976,-1286.15103807,0.00015498,2]
[351726580,1738767043987,-1286.15103807,0.00015498,2]
[351726581,1738767043998,-1286.15103807,0.00015498,2]
[351726582,1738767044007,-1286.15103807,0.00015498,2]
[351726583,1738767044017,-1286.15103807,0.00015498,2]
[351726584,1738767044027,-1286.15103807,0.00015498,2]
[351726585,1738767044037,-1286.15103807,0.00015498,2]
[351726586,1738767044048,-1286.15103807,0.00015498,2]
[351726587,1738767044057,-1286.15103807,0.00015498,2]
[351726588,1738767044067,-1286.15103807,0.00015498,2]
[351726589,1738767044077,-1286.15103807,0.00015498,2]
[351726590,1738767044087,-1126.72106329,0.00015498,2]
[351726591,1738767044401,-159.42997478,0.00015498,2]
[351726592,1738767044414,-1286.15,0.00015498,2]
[351726593,1738767044424,-263.67,0.00015498,2]
[351726594,1738767044434,-260.69261325,0.00015534,2]
[351726595,1738767044451,-951.27301497,0.00015534,2]
[351726596,1738767044461,-163.0,0.00015578,2]
[351726597,1738767044470,-73.73717232,0.00015578,2]
[351726598,1738767044663,-2624.01999998,0.0001546,2]
[351726599,1738767044939,-2508.13000002,0.0001546,2]
[351726600,1738767044950,-2699.48,0.0001546,2]
[351726601,1738767044960,-89.26282768,0.00015578,2]
[351726602,1738767044973,-163.0,0.00015578,2]
[351726603,1738767044983,-163.0,0.00015578,2]
[351726604,1738767044993,-163.0,0.00015578,2]
[351726605,1738767045003,-153.0,0.00015578,2]
[351726606,1738767045012,-163.0,0.00015578,2]
[351726607,1738767045022,-163.0,0.00015578,2]
[351726608,1738767045032,-163.0,0.00015578,2]
[351726609,1738767045042,-163.0,0.00015578,2]
[351726610,1738767045052,-163.0,0.00015578,2]
[351726611,1738767045062,-46.20248476,0.00015578,2]
[351726612,1738767045075,-116.79751524,0.00015578,2]
[351726613,1738767045085,-163.0,0.00015578,2]
[351726614,1738767045095,-163.0,0.00015578,2]
[351726615,1738767045106,-120.26621224,0.00015578,2]
[351726624,1738767155128,160.377,0.0001482,2]
[351726625,1738767301461,320.725127,0.00013973,2]
[351726632,1738767564725,209.86448349,0.00015004,2]
[351726662,1738767811913,2554.47900723,0.00018,30]
[351726663,1738767826001,10000.0,0.00015012,2]
[351726664,1738767853921,3232.94,0.00015012,2]
[351726666,1738767902594,214.000366,0.00014487,2]
[351726674,1738768040943,774.7233516,0.00014344,2]
[351726677,1738768113217,322.803088,0.00013973,2]
[351726727,1738768232142,-158.44375019,0.00015259,2]
[351726729,1738768232151,-230.57065193,0.0001526,2]
[351726731,1738768232160,-230.57065191,0.0001526,2]
[351726733,1738768232170,-230.57065191,0.00015261,2]
[351726735,1738768232179,-230.57065191,0.00015261,2]
[351726737,1738768232188,-230.57065191,0.00015261,2]
[351726739,1738768232198,-1699.82008903,0.00015277,2]
[351726741,1738768232214,-5465.84789759,0.00015277,2]
[351726743,1738768232224,-300.0,0.00015357,2]
[351726745,1738768232234,-500.0,0.00015358,2]
[351726747,1738768232249,-5823.62,0.00015358,2]
[351726749,1738768232259,-1452.39,0.00015358,2]
[351726751,1738768232269,-2378.9,0.00015358,2]
[351726753,1738768232279,-500.0,0.00015358,2]
[351726755,1738768232289,-3598.45,0.00015358,2]
[351726757,1738768232299,-1233.13,0.00015358,2]
[351726760,1738768232308,-500.0,0.00015358,2]
[351726762,1738768232319,-507.41395718,0.00015358,2]
[351726764,1738768232329,-500.0,0.00015358,2]
[351726765,1738768232339,-584.3,0.00015358,2]
[351726768,1738768232351,-552.79197401,0.00015358,2]
[351726769,1738768232361,-839.51433284,0.00015359,2]
[351726771,1738768232370,-500.0,0.00015359,2]
[351726773,1738768232380,-786.62,0.00015359,2]
[351726775,1738768232390,-500.0,0.00015359,2]
[351726777,1738768232399,-835.79,0.00015359,2]
[351726780,1738768232409,-10313.27,0.00015359,2]
[351726782,1738768232419,-911.0,0.00015359,2]
[351726783,1738768232428,-540.06417859,0.00015359,2]
[351726785,1738768232438,-644.516607,0.00015359,2]
[351726787,1738768232446,-500.0,0.00015359,2]
[351726789,1738768232455,-236.54799573,0.00015359,2]
[351726791,1738768232465,-500.0,0.00015359,2]
[351726793,1738768232474,-428.30663073,0.00015359,2]
[351726795,1738768232483,-500.0,0.00015359,2]
[351726798,1738768232493,-628.22,0.00015359,2]
[351726800,1738768232503,-7078.73,0.00015359,2]
[351726801,1738768232512,-17733.79,0.00015359,2]
[351726803,1738768232522,-3873.05,0.00015359,2]
[351726805,1738768232532,-500.0,0.00015359,2]
[351726807,1738768232542,-500.0,0.00015359,2]
[351726810,1738768232552,-2980.54,0.00015359,2]
[351726812,1738768232561,-8694.36,0.00015359,2]
[351726814,1738768232571,-625.69,0.00015359,2]
[351726816,1738768232581,-1238.88,0.00015359,2]
[351726818,1738768232590,-500.0,0.00015359,2]
[351726820,1738768232604,-500.0,0.00015359,2]
[351726821,1738768232614,-500.0,0.00015359,2]
[351726823,1738768232623,-1302.9,0.00015359,2]
[351726825,1738768232633,-500.0,0.00015359,2]
[351726827,1738768232642,-3228.08,0.00015359,2]
[351726829,1738768232651,-500.0,0.00015359,2]
[351726831,1738768232660,-7930.55,0.00015359,2]
[351726833,1738768232669,-1015.14,0.00015359,2]
[351726835,1738768232679,-12931.27,0.00015359,2]
[351726837,1738768232688,-500.0,0.0001536,2]
[351726839,1738768232698,-500.0,0.0001536,2]
[351726841,1738768232708,-500.0,0.0001536,2]
[351726843,1738768232717,-500.0,0.0001536,2]
[351726845,1738768232727,-500.0,0.0001536,2]
[351726847,1738768232734,-500.0,0.0001536,2]
[351726849,1738768232745,-871.96,0.0001536,2]
[351726851,1738768232754,-500.0,0.0001536,2]
[351726853,1738768232763,-528.18752151,0.0001536,2]
[351726855,1738768232772,-500.0,0.0001536,2]
[351726857,1738768232781,-500.0,0.0001536,2]
[351726859,1738768232790,-500.0,0.0001536,2]
[351726862,1738768232800,-1130.26,0.0001536,2]
[351726863,1738768232810,-500.0,0.0001536,2]
[351726866,1738768232820,-500.0,0.0001536,2]
[351726868,1738768232830,-507.45835027,0.0001536,2]
[351726870,1738768232839,-500.0,0.0001536,2]
[351726872,1738768232852,-500.0,0.0001536,2]
[351726874,1738768232861,-500.0,0.0001536,2]
[351726876,1738768232872,-500.0,0.0001536,2]
[351726878,1738768232881,-500.0,0.0001536,2]
[351726880,1738768232891,-500.0,0.0001536,2]
[351726882,1738768232902,-3373.92,0.0001536,2]
[351726884,1738768232912,-500.0,0.0001536,2]
[351726886,1738768232922,-500.0,0.0001536,2]
[351726888,1738768232932,-500.0,0.0001536,2]
[351726890,1738768232942,-500.0,0.0001536,2]
[351726892,1738768232951,-589.95,0.0001536,2]
[351726894,1738768232962,-551.69,0.0001536,2]
[351726896,1738768232972,-500.0,0.0001536,2]
[351726898,1738768232982,-375.91110621,0.0001536,2]
[351726900,1738768232993,-2086.85,0.0001536,2]
[351726902,1738768233003,-500.0,0.0001536,2]
[351726903,1738768233012,-500.0,0.0001536,2]
[351726906,1738768233023,-500.0,0.0001536,2]
[351726908,1738768233034,-616.86,0.0001536,2]
[351726910,1738768233044,-550.56,0.0001536,2]
[351726912,1738768233055,-500.0,0.0001536,2]
[351726913,1738768233065,-500.0,0.0001536,2]
[351726915,1738768233075,-500.0,0.0001536,2]
[351726918,1738768233087,-500.0,0.0001536,2]
[351726920,1738768233106,-500.0,0.0001536,2]
[351726922,1738768233117,-1016.55,0.0001536,2]
[351726924,1738768233128,-500.0,0.0001536,2]
[351726926,1738768233138,-1566.05,0.0001536,2]
[351726927,1738768233148,-500.0,0.0001536,2]
[351726929,1738768233159,-500.0,0.0001536,2]
[351726931,1738768233170,-500.0,0.0001536,2]
[351726933,1738768233180,-500.0,0.0001536,2]
[351726934,1738768233190,-1470.02,0.0001536,2]
[351726935,1738768233201,-500.0,0.0001536,2]
[351726936,1738768233212,-500.0,0.0001536,2]
[351726937,1738768233222,-500.26,0.0001536,2]
[351726938,1738768233232,-500.0,0.0001536,2]
[351726939,1738768233243,-500.0,0.0001536,2]
[351726940,1738768233255,-944.83,0.0001536,2]
[351726941,1738768233265,-500.0,0.0001536,2]
[351726942,1738768233276,-228.63496614,0.0001536,2]
[351726943,1738768233288,-500.0,0.0001536,2]
[351726944,1738768233298,-2488.61,0.0001536,2]
[351726945,1738768233308,-1208.65,0.0001536,2]
[351726946,1738768233318,-500.0,0.0001536,2]
[351726947,1738768233329,-500.0,0.0001536,2]
[351726948,1738768233342,-500.0,0.0001536,2]
[351726949,1738768233356,-500.0,0.0001536,2]
[351726950,1738768233368,-500.0,0.0001536,2]
[351726951,1738768233383,-500.0,0.0001536,2]
[351726952,1738768233394,-500.0,0.0001536,2]
[351726953,1738768233404,-518.42,0.0001536,2]
[351726954,1738768233414,-500.0,0.0001536,2]
[351726955,1738768233425,-500.0,0.0001536,2]
[351726956,1738768233436,-1850.74,0.0001536,2]
[351726957,1738768233447,-637.13,0.0001536,2]
[351726958,1738768233458,-500.0,0.0001536,2]
[351726959,1738768233469,-500.0,0.0001536,2]
[351726960,1738768233479,-500.0,0.0001536,2]
[351726961,1738768233490,-501.45373026,0.0001536,2]
[351726962,1738768233501,-500.0,0.0001536,2]
[351726963,1738768233511,-500.0,0.0001536,2]
[351726964,1738768233520,-500.0,0.0001536,2]
[351726965,1738768233531,-500.0,0.0001536,2]
[351726966,1738768233540,-732.66,0.0001536,2]
[351726967,1738768233551,-500.0,0.0001536,2]
[351726968,1738768233561,-1673.55,0.0001536,2]
[351726969,1738768233572,-730.92,0.0001536,2]
[351726970,1738768233582,-1747.89,0.0001536,2]
[351726971,1738768233593,-500.0,0.0001536,2]
[351726972,1738768233606,-158.80603905,0.0001536,2]
[351726973,1738768233617,-500.0,0.0001536,2]
[351726974,1738768233627,-500.0,0.0001536,2]
[351726975,1738768233638,-500.0,0.0001536,2]
[351726976,1738768233649,-1579.61,0.0001536,2]
[351726977,1738768233659,-500.0,0.0001536,2]
[351726978,1738768233670,-500.0,0.0001536,2]
[351726979,1738768233680,-500.0,0.0001536,2]
[351726980,1738768233691,-819.43,0.0001536,2]
[351726981,1738768233701,-500.0,0.0001536,2]
[351726982,1738768233711,-500.0,0.0001536,2]
[351726983,1738768233721,-1139.84,0.0001536,2]
[351726984,1738768233731,-500.0,0.0001536,2]
[351726985,1738768233742,-500.0,0.0001536,2]
[351726986,1738768233753,-500.0,0.0001536,2]
[351726987,1738768233765,-500.0,0.0001536,2]
[351726988,1738768233777,-2544.52,0.0001536,2]
[351726989,1738768233787,-500.0,0.0001536,2]
[351726990,1738768233798,-547.79,0.0001536,2]
[351726991,1738768233808,-500.0,0.0001536,2]
[351726992,1738768233818,-988.58,0.0001536,2]
[351726993,1738768233828,-500.0,0.0001536,2]
[351726994,1738768233838,-500.0,0.0001536,2]
[351726995,1738768233852,-503.67975763,0.0001536,2]
[351726996,1738768233862,-500.0,0.0001536,2]
[351726997,1738768233873,-500.0,0.0001536,2]
[351726998,1738768233883,-289.85139457,0.0001536,2]
[351726999,1738768233894,-679.68,0.0001536,2]
[351727000,1738768233903,-1247.01,0.0001536,2]
[351727001,1738768233914,-528.28124206,0.0001536,2]
[351727002,1738768233924,-517.06471231,0.0001536,2]
[351727003,1738768233935,-648.87304693,0.0001536,2]
[351727004,1738768233946,-500.0,0.0001536,2]
[351727005,1738768233956,-500.0,0.0001536,2]
[351727006,1738768233966,-500.0,0.0001536,2]
[351727007,1738768233977,-500.0,0.0001536,2]
[351727008,1738768233987,-1108.91,0.0001536,2]
[351727009,1738768233998,-500.0,0.0001536,2]
[351727010,1738768234009,-694.71,0.0001536,2]
[351727011,1738768234019,-581.221941,0.0001536,2]
[351727012,1738768234030,-501.1,0.0001536,2]
[351727013,1738768234040,-500.0,0.0001536,2]
[351727014,1738768234051,-500.0,0.0001536,2]
[351727015,1738768234061,-500.0,0.0001536,2]
[351727016,1738768234072,-2114.3,0.0001536,2]
[351727017,1738768234082,-573.11,0.0001536,2]
[351727018,1738768234094,-763.51,0.0001536,2]
[351727019,1738768234107,-500.0,0.0001536,2]
[351727020,1738768234116,-500.0,0.0001536,2]
[351727021,1738768234127,-500.0,0.0001536,2]
[351727022,1738768234138,-585.80280478,0.0001536,2]
[351727023,1738768234148,-824.01,0.0001536,2]
[351727024,1738768234158,-500.0,0.0001536,2]
[351727025,1738768234169,-500.0,0.0001536,2]
[351727026,1738768234179,-500.0,0.0001536,2]
[351727027,1738768234190,-500.0,0.0001536,2]
[351727028,1738768234200,-500.0,0.0001536,2]
[351727029,1738768234210,-500.0,0.0001536,2]
[351727030,1738768234220,-500.0,0.0001536,2]
[351727031,1738768234230,-500.0,0.0001536,2]
[351727032,1738768234242,-502.42163637,0.0001536,2]
[351727033,1738768234254,-265.36073785,0.0001536,2]
[351727034,1738768234270,-500.0,0.0001536,2]
[351727035,1738768234280,-501.29092581,0.0001536,2]
[351727036,1738768234294,-500.0,0.0001536,2]
[351727037,1738768234304,-500.0,0.0001536,2]
[351727038,1738768234315,-503.36946444,0.0001536,2]
[351727039,1738768234324,-500.0,0.0001536,2]
[351727040,1738768234336,-500.0,0.0001536,2]
[351727041,1738768234350,-500.0,0.0001536,2]
[351727042,1738768234359,-500.0,0.0001536,2]
[351727043,1738768234370,-500.0,0.0001536,2]
[351727044,1738768234380,-500.0,0.0001536,2]
[351727045,1738768234391,-500.0,0.0001536,2]
[351727046,1738768234556,-500.0,0.0001536,2]
[351727047,1738768234567,-500.0,0.0001536,2]
[351727048,1738768234578,-500.44987244,0.0001536,2]
[351727049,1738768234588,-520.97238367,0.0001536,2]
[351727050,1738768234607,-838.53,0.0001536,2]
[351727051,1738768234618,-500.0,0.0001536,2]
[351727052,1738768234629,-500.0,0.0001536,2]
[351727053,1738768234639,-3088.01,0.0001536,2]
[351727054,1738768234650,-500.0,0.0001536,2]
[351727055,1738768234660,-518.66,0.0001536,2]
[351727056,1738768234671,-823.98,0.0001536,2]
[351727057,1738768234682,-500.0,0.0001536,2]
[351727058,1738768234692,-500.0,0.0001536,2]
[351727059,1738768234703,-500.0,0.0001536,2]
[351727060,1738768234713,-500.0,0.0001536,2]
[351727061,1738768234723,-500.0,0.0001536,2]
[351727062,1738768234734,-500.0,0.0001536,2]
[351727063,1738768234745,-632.73,0.0001536,2]
[351727064,1738768234755,-1440.9,0.0001536,2]
[351727065,1738768234766,-3558.22,0.0001536,2]
[351727066,1738768234777,-500.0,0.0001536,2]
[351727067,1738768234787,-500.0,0.0001536,2]
[351727068,1738768234798,-626.28,0.0001536,2]
[351727069,1738768234808,-500.0,0.0001536,2]
[351727070,1738768234819,-500.0,0.0001536,2]